[Event "Bruges Masters 2019"]
[Site "Bruges"]
[Date "2019.08.14"]
[Round "7.1"]
[White "Pel, Bonno"]
[Black "Legky, Nikolay A"]
[Result "0-1"]
[ECO "B25"]
[WhiteElo "2255"]
[BlackElo "2397"]
[Annotator "NA"]
[PlyCount "84"]
[EventDate "2019.08.11"]
[EventType "swiss"]
[EventCountry "BEL"]
[SourceTitle "playchess.com"]
[Source "ChessBase"]
[SourceQuality "1"]
[TimeControl "5400+30"]

1. g3 {[%emt 0:08:28]} g6 {[%emt 0:00:00]} 2. Bg2 {[%emt 0:00:20]} Bg7 {[%emt 0:00:00]} 3. d3 {[%emt 0:01:17]} Nf6 {[%emt 0:00:00]} 4. e4 {[%emt 0:01:35]} d6 {[%emt 0:00:01]} 5. f4 {[%emt 0:00:36]} c5 {[%emt 0:00:05]} 6. Nf3 {[%emt 0:00:18]} Nc6 {[%emt 0:00:05]} 7. O-O {[%emt 0:00:18]} O-O {[%emt 0:00:06]} 8. Nc3 {[%emt 0:02:10]} Bg4 {[%emt 0:01:27]} 9. h3 {[%emt 0:00:36]} Bxf3 {[%emt 0:00:04]} 10. Qxf3 {[%emt 0:00:24]} Rb8 {[%emt 0:00:06]} 11. Nd1 {[%emt 0:10:40] B25: Closed Sicilian: 3 g3, lines without early Be3} Nd7 {[%emt 0:03:42]} (11... b5 12. c3 Nd7 13. Ne3 b4 14. e5 Rc8 15. exd6 e6 16. Bd2 Nb6 17. Nc4 bxc3 18. bxc3 Nxc4 19. dxc4 Qxd6 {0-1 (34) Neverov,V (2498)-Jones,G (2657) Gjakova 2016}) 12. c3 {[%emt 0:05:35]} Rc8 $146 {[%emt 0:01:15]} ({Predecessor:} 12... f5 13. Re1 e5 14. exf5 Rxf5 15. Qd5+ Kh8 16. Qxd6 exf4 17. Bxc6 bxc6 18. gxf4 Qh4 {1-0 (47) Sheldrick,K (2161)-Encel,B (1781) Manly Sydney 2009}) 13. Ne3 {[%emt 0:03:52]} b5 {[%emt 0:00:18]} 14. Bd2 {[%emt 0:03:32]} b4 {[%emt 0:00:47]} 15. h4 {[%emt 0:02:27]} Nb6 {[%emt 0:07:34]} 16. Qd1 {[%emt 0:09:37]} a5 {[%emt 0:26:43]} 17. a4 {[%emt 0:09:53]} e6 {[%emt 0:08:07]} 18. f5 $1 {[%emt 0:09:37]} exf5 {[%emt 0:00:08]} 19. exf5 {[%emt 0:00:13]} Ne5 {[%emt 0:00:03]} 20. Nd5 {[%emt 0:03:25]} Nxd5 {[%emt 0:06:34]} 21. Bxd5 {[%emt 0:01:06]} Kh8 {[%emt 0:00:18]} 22. Qe2 {[%emt 0:07:09]} Re8 {[%emt 0:05:52]} 23. Rae1 $11 {[%emt 0:01:53]} Qd7 {[%emt 0:03:03]} 24. Be3 {[%emt 0:04:24]} bxc3 {[%emt 0:03:07]} 25. bxc3 {[%emt 0:00:07]} gxf5 {[%emt 0:10:25]} 26. Qc2 {[%emt 0:04:36]} Ng4 {[%emt 0:01:36]} 27. Bf4 {[%emt 0:00:48]} Rxe1 {[%emt 0:01:13]} 28. Rxe1 {[%emt 0:00:06]} Re8 {[%emt 0:00:01]} 29. Rb1 {[%emt 0:02:16]} Qe7 {[%emt 0:03:58]} 30. Qd2 {[%emt 0:00:28]} Qf6 {[%emt 0:01:26]} 31. Rb3 {[%emt 0:03:07]} Bh6 {[%emt 0:00:50]} 32. Bf3 {[%emt 0:01:40]} Ne5 {[%emt 0:04:15]} 33. Bg2 {[%emt 0:00:45]} Bxf4 {[%emt 0:00:32]} 34. Qxf4 {[%emt 0:00:48]} Nxd3 {[%emt 0:00:36]} 35. Qd2 {[%emt 0:00:20]} c4 {[%emt 0:01:48]} 36. Rb5 {[%emt 0:00:20]} f4 {[%emt 0:00:38]} 37. Rg5 {[%emt 0:01:23]} fxg3 {[%emt 0:03:14]} 38. Rxg3 {[%emt 0:00:36]} Re1+ {[%emt 0:00:03]} 39. Kh2 {[%emt 0:00:27]} Qxh4+ {[%emt 0:00:03]} 40. Bh3 {[%emt 0:00:59]} Rh1+ {[%emt 0:03:36]} 41. Kxh1 {[%emt 0:00:29]} Qxg3 {[%emt 0:00:03]} 42. Bg2 {[%emt 0:00:07]} Kg7 {[%emt 0:01:12]} 0-1

[Event "Bruges Masters 2019"]
[Site "Bruges"]
[Date "2019.08.14"]
[Round "7.3"]
[White "Van Osch, Mees"]
[Black "Dgebuadze, Alexandre"]
[Result "1/2-1/2"]
[ECO "C18"]
[WhiteElo "2316"]
[BlackElo "2495"]
[Annotator "ChessBase"]
[PlyCount "59"]
[EventDate "2019.08.11"]
[EventType "swiss"]
[EventCountry "BEL"]
[SourceTitle "playchess.com"]
[Source "ChessBase"]
[SourceQuality "1"]
[TimeControl "5400+30"]

1. e4 {[%emt 0:00:00]} e6 {[%emt 0:00:00]} 2. d4 {[%emt 0:00:00]} d5 {[%emt 0:00:04]} 3. Nc3 {[%emt 0:00:00]} Bb4 {[%emt 0:00:04]} 4. e5 {[%emt 0:00:29]} Ne7 {[%emt 0:00:09]} 5. a3 {[%emt 0:02:12]} Bxc3+ {[%emt 0:00:56]} 6. bxc3 {[%emt 0:00:05]} c5 {[%emt 0:00:06]} 7. Qg4 {[%emt 0:00:20]} O-O {[%emt 0:00:10]} 8. Bd3 {[%emt 0:00:44]} Nbc6 {[%emt 0:00:12]} 9. Qh5 {[%emt 0:00:43]} Ng6 {[%emt 0:00:08]} 10. Nf3 {[%emt 0:00:47]} Nce7 {[%emt 0:07:08]} 11. h4 {[%emt 0:01:20]} Bd7 {[%emt 0:03:34]} 12. Qg4 {[%emt 0:01:36]} f5 {[%emt 0:12:43]} 13. Qh3 {[%emt 0:00:23]} Qa5 {[%emt 0:02:47]} 14. Bd2 {[%emt 0:00:37]} c4 {[%emt 0:05:59]} 15. Bf1 {[%emt 0:11:31]} Ba4 {[%emt 0:18:25]} 16. h5 {[%emt 0:00:32]} Nh8 {[%emt 0:00:06]} 17. h6 {[%emt 0:06:49]} g6 {[%emt 0:00:05]} 18. Ng5 {[%emt 0:00:29]} Qb6 {[%emt 0:01:08]} 19. Rc1 {[%emt 0:00:11]} Nf7 {[%emt 0:01:06]} 20. Be2 {[%emt 0:00:40]} Nxg5 {[%emt 0:08:37]} 21. Bxg5 {[%emt 0:00:19]} Rae8 {[%emt 0:02:27]} 22. Kd2 {[%emt 0:07:58]} Qb2 {[%emt 0:02:27]} 23. Bxe7 {[%emt 0:01:59]} Rxe7 {[%emt 0:00:42]} 24. Qh4 {[%emt 0:03:43]} Ref7 {[%emt 0:00:25]} 25. f4 {[%emt 0:00:28]} b5 {[%emt 0:03:40]} 26. Qg5 {[%emt 0:09:34]} a5 {[%emt 0:01:21]} 27. Qg3 {[%emt 0:15:21]} Qxa3 {[%emt 0:02:16]} 28. Ra1 {[%emt 0:02:09]} Qb2 {[%emt 0:27:15]} 29. Rhb1 {[%emt 0:33:31]} Qxc2+ {[%emt 0:00:30]} 30. Ke1 1/2-1/2

[Event "Bruges Masters 2019"]
[Site "Bruges"]
[Date "2019.08.14"]
[Round "7.4"]
[White "Goudriaan, Etienne"]
[Black "Mirzoev, Azer"]
[Result "0-1"]
[ECO "D17"]
[WhiteElo "2341"]
[BlackElo "2474"]
[Annotator "ChessBase"]
[PlyCount "120"]
[EventDate "2019.08.11"]
[EventType "swiss"]
[EventCountry "BEL"]
[SourceTitle "playchess.com"]
[Source "ChessBase"]
[SourceQuality "1"]
[TimeControl "5400+30"]

1. d4 {[%emt 0:01:20]} d5 {[%emt 0:05:47]} 2. c4 {[%emt 0:00:34]} c6 {[%emt 0:00:45]} 3. Nf3 {[%emt 0:00:09]} Nf6 {[%emt 0:00:04]} 4. Nc3 {[%emt 0:00:03]} dxc4 {[%emt 0:00:05]} 5. a4 {[%emt 0:00:07]} Bf5 {[%emt 0:00:04]} 6. Ne5 {[%emt 0:00:15]} e6 {[%emt 0:01:43]} 7. f3 {[%emt 0:01:06]} c5 {[%emt 0:00:05]} 8. e4 {[%emt 0:00:07]} Bg6 {[%emt 0:00:03]} 9. Be3 {[%emt 0:00:15]} cxd4 {[%emt 0:00:05]} 10. Qxd4 {[%emt 0:00:16]} Qxd4 {[%emt 0:00:06]} 11. Bxd4 {[%emt 0:00:06]} Nfd7 {[%emt 0:00:08]} 12. Nxd7 {[%emt 0:00:27]} Nxd7 {[%emt 0:00:04]} 13. Bxc4 {[%emt 0:00:17]} a6 {[%emt 0:00:04]} 14. Rd1 {[%emt 0:06:53]} Rc8 {[%emt 0:00:46]} 15. Ba2 {[%emt 0:04:33]} Rg8 {[%emt 0:04:07]} 16. h4 {[%emt 0:00:51]} h6 {[%emt 0:00:07]} 17. Ne2 {[%emt 0:08:58]} Bh7 {[%emt 0:04:54]} 18. Ng3 {[%emt 0:05:29]} Bb4+ {[%emt 0:22:25]} 19. Kf1 {[%emt 0:00:32]} Bd6 {[%emt 0:13:15]} 20. Nh5 {[%emt 0:08:03]} Be5 {[%emt 0:00:29]} 21. Bxe5 {[%emt 0:00:54]} Nxe5 {[%emt 0:00:08]} 22. Ke2 {[%emt 0:00:19]} Ke7 {[%emt 0:00:06]} 23. Rd2 {[%emt 0:01:28]} g5 {[%emt 0:03:25]} 24. hxg5 {[%emt 0:12:03]} hxg5 {[%emt 0:00:34]} 25. Nf6 {[%emt 0:00:23]} Kxf6 {[%emt 0:00:08]} 26. Rxh7 {[%emt 0:00:09]} Rc1 {[%emt 0:01:42]} 27. Bb3 {[%emt 0:03:41]} Rg1 {[%emt 0:04:13]} 28. Kf2 {[%emt 0:05:25]} Rb1 {[%emt 0:00:19]} 29. g3 {[%emt 0:01:52]} Kg6 {[%emt 0:02:44]} 30. Rh3 {[%emt 0:02:10]} g4 {[%emt 0:01:09]} 31. fxg4 {[%emt 0:00:19]} Nxg4+ {[%emt 0:00:12]} 32. Kf3 {[%emt 0:02:52]} Kf6 {[%emt 0:00:33]} 33. Rh4 {[%emt 0:01:15]} Rf1+ {[%emt 0:05:39]} 34. Ke2 {[%emt 0:04:23]} Rg1 {[%emt 0:00:24]} 35. Rh3 {[%emt 0:01:38]} Ne5 {[%emt 0:04:58]} 36. Kf2 {[%emt 0:00:48]} Rb1 {[%emt 0:00:15]} 37. Kg2 {[%emt 0:00:02]} Rc8 {[%emt 0:04:01]} 38. Rh5 {[%emt 0:02:47]} Rg1+ {[%emt 0:05:00]} 39. Kxg1 {[%emt 0:01:17]} Nf3+ {[%emt 0:00:05]} 40. Kf2 {[%emt 0:00:07]} Nxd2 {[%emt 0:00:03]} 41. e5+ {[%emt 0:00:58]} Kg6 {[%emt 0:01:00]} 42. Bd1 {[%emt 0:00:01]} Ne4+ {[%emt 0:00:55]} 43. Kg2 {[%emt 0:00:13]} Rc1 {[%emt 0:01:21]} 44. Rh1 {[%emt 0:00:04]} Kg7 {[%emt 0:00:58]} 45. Rg1 {[%emt 0:07:51]} a5 {[%emt 0:00:42]} 46. Kf3 {[%emt 0:01:44]} Nc5 {[%emt 0:00:58]} 47. Ke3 {[%emt 0:01:12]} Nxa4 {[%emt 0:01:30]} 48. Kd2 {[%emt 0:00:01]} Ra1 {[%emt 0:01:29]} 49. Kc2 {[%emt 0:00:01]} Nc5 {[%emt 0:03:28]} 50. Rf1 {[%emt 0:00:46]} Nd7 {[%emt 0:02:34]} 51. Rf3 {[%emt 0:00:03]} Nxe5 {[%emt 0:01:25]} 52. Rb3 {[%emt 0:00:01]} Nc4 {[%emt 0:01:54]} 53. Bh5 {[%emt 0:05:11]} Rh1 {[%emt 0:02:23]} 54. g4 {[%emt 0:00:51]} b6 {[%emt 0:00:16]} 55. Rc3 {[%emt 0:01:21]} Rh2+ {[%emt 0:00:46]} 56. Kb3 {[%emt 0:00:06]} b5 {[%emt 0:00:40]} 57. Rc2 {[%emt 0:00:25]} Rxc2 {[%emt 0:01:03]} 58. Kxc2 {[%emt 0:00:02]} f6 {[%emt 0:00:43]} 59. Be8 {[%emt 0:00:14]} Nd6 {[%emt 0:00:01]} 60. Bc6 {[%emt 0:00:23]} e5 {[%emt 0:00:14]} 0-1

[Event "Bruges Masters 2019"]
[Site "Bruges"]
[Date "2019.08.14"]
[Round "7.5"]
[White "Jonkman, Harmen"]
[Black "Offringa, Joost"]
[Result "1/2-1/2"]
[ECO "B31"]
[WhiteElo "2394"]
[BlackElo "2291"]
[Annotator "ChessBase"]
[PlyCount "175"]
[EventDate "2019.08.11"]
[EventType "swiss"]
[EventCountry "BEL"]
[SourceTitle "playchess.com"]
[Source "ChessBase"]
[SourceQuality "1"]
[TimeControl "5400+30"]

1. e4 {[%emt 0:00:00]} c5 {[%emt 0:02:32]} 2. Nf3 {[%emt 0:01:12]} Nc6 {[%emt 0:00:05]} 3. Bb5 {[%emt 0:01:18]} g6 {[%emt 0:00:07]} 4. O-O {[%emt 0:02:21]} Bg7 {[%emt 0:00:44]} 5. Bxc6 {[%emt 0:00:50]} dxc6 {[%emt 0:00:16]} 6. d3 {[%emt 0:00:19]} Nf6 {[%emt 0:06:27]} 7. h3 {[%emt 0:04:56]} O-O {[%emt 0:04:19]} 8. Nbd2 {[%emt 0:09:24]} Ne8 {[%emt 0:07:29]} 9. Re1 {[%emt 0:09:27]} Nc7 {[%emt 0:06:41]} 10. a4 {[%emt 0:23:42]} a5 {[%emt 0:07:41]} 11. e5 {[%emt 0:08:43]} Ne6 {[%emt 0:08:29]} 12. Nc4 {[%emt 0:04:20]} Qc7 {[%emt 0:12:16]} 13. Bd2 {[%emt 0:06:25]} Nd4 {[%emt 0:12:28]} 14. Nxd4 {[%emt 0:01:41]} cxd4 {[%emt 0:00:07]} 15. Qc1 {[%emt 0:00:19]} Be6 {[%emt 0:04:00]} 16. Bh6 {[%emt 0:00:09]} Bxc4 {[%emt 0:00:45]} 17. dxc4 {[%emt 0:00:09]} f5 {[%emt 0:02:20]} 18. exf6 {[%emt 0:04:48]} Rxf6 {[%emt 0:04:17]} 19. Bxg7 {[%emt 0:04:14]} Kxg7 {[%emt 0:00:04]} 20. Qg5 {[%emt 0:00:31]} Raf8 {[%emt 0:05:16]} 21. Qc5 {[%emt 0:02:53]} Rd6 {[%emt 0:04:19]} 22. Qe5+ {[%emt 0:00:42]} Rff6 {[%emt 0:01:36]} 23. Qxe7+ {[%emt 0:00:29]} Qxe7 {[%emt 0:00:03]} 24. Rxe7+ {[%emt 0:00:03]} Rf7 {[%emt 0:00:05]} 25. Rxf7+ {[%emt 0:00:26]} Kxf7 {[%emt 0:00:04]} 26. Rd1 {[%emt 0:00:29]} c5 {[%emt 0:00:52]} 27. Kf1 {[%emt 0:00:06]} Rb6 {[%emt 0:00:55]} 28. b3 {[%emt 0:00:09]} Kf6 {[%emt 0:00:20]} 29. Re1 {[%emt 0:00:12]} d3 {[%emt 0:00:30]} 30. cxd3 {[%emt 0:00:25]} Rxb3 {[%emt 0:00:03]} 31. Ke2 {[%emt 0:00:16]} h5 {[%emt 0:02:26]} 32. g3 {[%emt 0:01:21]} Kf5 {[%emt 0:01:31]} 33. Ke3 {[%emt 0:00:11]} Rb2 {[%emt 0:00:57]} 34. Rg1 {[%emt 0:00:23]} Kf6 {[%emt 0:02:04]} 35. g4 {[%emt 0:00:57]} h4 {[%emt 0:00:22]} 36. g5+ {[%emt 0:01:59]} Kf5 {[%emt 0:00:04]} 37. Rg4 {[%emt 0:00:27]} Rb4 {[%emt 0:00:13]} 38. Re4 {[%emt 0:02:23]} Kxg5 {[%emt 0:00:53]} 39. Re5+ {[%emt 0:00:05]} Kh6 {[%emt 0:00:31]} 40. Rxc5 {[%emt 0:00:05]} Rxa4 {[%emt 0:00:07]} 41. Rb5 {[%emt 0:02:05]} Ra1 {[%emt 0:00:25]} 42. Rxb7 {[%emt 0:05:51]} Rh1 {[%emt 0:01:06]} 43. Ke2 {[%emt 0:00:50]} Rxh3 {[%emt 0:00:45]} 44. Rb1 {[%emt 0:01:30]} Kg7 {[%emt 0:00:05]} 45. Ra1 {[%emt 0:01:29]} Kf6 {[%emt 0:01:34]} 46. Rxa5 {[%emt 0:00:10]} g5 {[%emt 0:00:07]} 47. Ra6+ {[%emt 0:00:31]} Kf5 {[%emt 0:00:58]} 48. Ra5+ {[%emt 0:00:40]} Kf6 {[%emt 0:00:47]} 49. Ra1 {[%emt 0:01:11]} g4 {[%emt 0:00:50]} 50. c5 {[%emt 0:01:03]} g3 {[%emt 0:00:40]} 51. fxg3 {[%emt 0:00:16]} Rxg3 {[%emt 0:00:05]} 52. Ra4 {[%emt 0:00:36]} h3 {[%emt 0:00:10]} 53. Rh4 {[%emt 0:00:12]} Ke5 {[%emt 0:01:19]} 54. c6 {[%emt 0:00:26]} Rg6 {[%emt 0:01:33]} 55. c7 {[%emt 0:00:07]} Rc6 {[%emt 0:00:04]} 56. Rc4 {[%emt 0:01:37]} Rxc4 {[%emt 0:00:04]} 57. dxc4 {[%emt 0:00:02]} h2 {[%emt 0:00:04]} 58. c8=Q {[%emt 0:00:07]} h1=Q {[%emt 0:00:03]} 59. Qc5+ {[%emt 0:00:30]} Ke6 {[%emt 0:00:25]} 60. Qb6+ {[%emt 0:00:16]} Kd7 {[%emt 0:00:42]} 61. Kd2 {[%emt 0:01:09]} Qc6 {[%emt 0:01:00]} 62. Qa7+ {[%emt 0:00:24]} Qc7 {[%emt 0:00:07]} 63. Qa4+ {[%emt 0:00:12]} Qc6 {[%emt 0:00:10]} 64. Qb3 {[%emt 0:00:25]} Qg2+ {[%emt 0:00:28]} 65. Kc1 {[%emt 0:00:08]} Qf1+ {[%emt 0:00:17]} 66. Kb2 {[%emt 0:00:16]} Qf2+ {[%emt 0:00:05]} 67. Ka1 {[%emt 0:00:13]} Qg1+ {[%emt 0:00:06]} 68. Ka2 {[%emt 0:00:05]} Qf2+ {[%emt 0:00:05]} 69. Ka3 {[%emt 0:00:06]} Qa7+ {[%emt 0:00:07]} 70. Kb2 {[%emt 0:01:03]} Qf2+ {[%emt 0:00:05]} 71. Kc1 {[%emt 0:01:58]} Qg1+ {[%emt 0:00:04]} 72. Kd2 {[%emt 0:00:11]} Qf2+ {[%emt 0:00:05]} 73. Kc1 {[%emt 0:00:17]} Qg1+ {[%emt 0:00:04]} 74. Qd1+ {[%emt 0:00:09]} Qxd1+ {[%emt 0:00:05]} 75. Kxd1 {[%emt 0:00:03]} Kc6 {[%emt 0:00:02]} 76. Kc2 {[%emt 0:00:04]} Kc5 {[%emt 0:00:03]} 77. Kc3 {[%emt 0:00:05]} Kc6 {[%emt 0:00:02]} 78. Kd4 {[%emt 0:00:07]} Kd6 {[%emt 0:00:02]} 79. c5+ {[%emt 0:00:05]} Kc6 {[%emt 0:00:02]} 80. Kc4 {[%emt 0:00:04]} Kc7 {[%emt 0:00:01]} 81. Kd5 {[%emt 0:00:05]} Kd7 {[%emt 0:00:02]} 82. c6+ {[%emt 0:00:05]} Kc7 {[%emt 0:00:01]} 83. Kc5 {[%emt 0:00:03]} Kc8 {[%emt 0:00:02]} 84. Kb5 {[%emt 0:00:05]} Kc7 {[%emt 0:00:02]} 85. Kc5 {[%emt 0:00:06]} Kc8 {[%emt 0:00:02]} 86. Kd6 {[%emt 0:00:05]} Kd8 {[%emt 0:00:03]} 87. c7+ {[%emt 0:00:06]} Kc8 {[%emt 0:00:02]} 88. Kc6 {[%emt 0:00:06]} 1/2-1/2

[Event "Bruges Masters 2019"]
[Site "Bruges"]
[Date "2019.08.14"]
[Round "7.6"]
[White "Quesada Vera, Liordis"]
[Black "Du, Chunhui"]
[Result "1/2-1/2"]
[ECO "C25"]
[WhiteElo "2386"]
[BlackElo "2137"]
[Annotator "NA"]
[PlyCount "92"]
[EventDate "2019.08.11"]
[EventType "swiss"]
[EventCountry "BEL"]
[SourceTitle "playchess.com"]
[Source "ChessBase"]
[SourceQuality "1"]
[TimeControl "5400+30"]

1. e4 {[%emt 0:01:01]} e5 {[%emt 0:00:10]} 2. Nc3 {[%emt 0:00:09]} Nc6 {[%emt 0:01:29]} 3. g3 {[%emt 0:00:18]} Bc5 {[%emt 0:04:21]} 4. Bg2 {[%emt 0:00:12]} Qf6 {[%emt 0:03:35]} 5. Nf3 {[%emt 0:04:33]} Nge7 {[%emt 0:01:18]} 6. d3 {[%emt 0:00:47]} d6 {[%emt 0:05:22]} 7. Na4 {[%emt 0:10:45]} h6 {[%emt 0:01:38]} 8. Nxc5 {[%emt 0:01:41]} dxc5 {[%emt 0:00:01]} 9. Be3 {[%emt 0:00:14]} b6 {[%emt 0:01:43]} 10. Nd2 {[%emt 0:03:14]} Bb7 {[%emt 0:06:44]} 11. a3 {[%emt 0:10:08]} a5 {[%emt 0:02:27]} 12. Qg4 {[%emt 0:18:54]} Qg6 {[%emt 0:13:07]} 13. Qxg6 {[%emt 0:05:45]} Nxg6 {[%emt 0:01:00]} 14. h4 {[%emt 0:10:30]} Nge7 {[%emt 0:04:29]} 15. Rh2 {[%emt 0:01:42]} g6 {[%emt 0:05:54]} 16. h5 {[%emt 0:04:31]} g5 {[%emt 0:00:48]} 17. Bh3 {[%emt 0:00:10]} Bc8 {[%emt 0:00:35]} 18. Bxc8 {[%emt 0:02:13]} Nxc8 {[%emt 0:00:23]} 19. f4 {[%emt 0:00:56]} f6 {[%emt 0:00:03]} 20. O-O-O $14 {[%emt 0:01:06]} Nd6 {[%emt 0:01:24]} 21. Rf1 {[%emt 0:00:18]} Ke7 {[%emt 0:01:54]} 22. Rhf2 {[%emt 0:00:26]} Raf8 {[%emt 0:02:00]} 23. Nf3 {[%emt 0:02:12]} Ne8 {[%emt 0:10:01]} 24. Nh2 {[%emt 0:09:15]} exf4 {[%emt 0:09:55]} 25. gxf4 {[%emt 0:00:03]} Ng7 {[%emt 0:00:24]} 26. e5 {[%emt 0:04:46]} Nxh5 {[%emt 0:07:29]} 27. exf6+ {[%emt 0:00:21]} Rxf6 {[%emt 0:01:08]} 28. fxg5 {[%emt 0:04:05]} Rxf2 {[%emt 0:00:11]} 29. Rxf2 {[%emt 0:00:07]} hxg5 {[%emt 0:00:08]} 30. Bxg5+ {[%emt 0:00:09]} Ke6 {[%emt 0:00:17]} 31. Nf3 {[%emt 0:01:15]} Rh7 {[%emt 0:01:51]} 32. Rg2 {[%emt 0:00:59]} Rf7 {[%emt 0:00:31]} 33. Nd2 {[%emt 0:00:43]} Nd4 {[%emt 0:02:21]} 34. c3 {[%emt 0:00:06]} Nf3 {[%emt 0:02:40]} 35. Nxf3 {[%emt 0:01:14]} Rxf3 {[%emt 0:00:06]} 36. Kd2 {[%emt 0:00:35]} Nf4 {[%emt 0:01:30]} 37. Bxf4 {[%emt 0:02:11]} Rxf4 {[%emt 0:00:07]} 38. Ke3 {[%emt 0:00:23]} Rh4 {[%emt 0:00:05]} 39. c4 {[%emt 0:00:40]} Kd6 {[%emt 0:00:10]} 40. Kd2 {[%emt 0:00:08]} Kc6 {[%emt 0:00:59]} 41. Rg8 {[%emt 0:00:03]} Kd7 {[%emt 0:00:37]} 42. Kc3 {[%emt 0:00:01]} Rh3 {[%emt 0:00:06]} 43. Rg5 {[%emt 0:00:28]} Kc6 {[%emt 0:00:28]} 44. Rd5 {[%emt 0:00:26]} Rh1 {[%emt 0:00:50]} 45. Kb3 {[%emt 0:00:15]} Rc1 {[%emt 0:00:23]} 46. Rd8 {[%emt 0:00:16]} Rd1 {[%emt 0:00:29]} 1/2-1/2

[Event "Bruges Masters 2019"]
[Site "Bruges"]
[Date "2019.08.14"]
[Round "7.7"]
[White "Larsen, Harald"]
[Black "Bekker, Stefan"]
[Result "1/2-1/2"]
[ECO "B51"]
[WhiteElo "1991"]
[BlackElo "2272"]
[Annotator "ChessBase"]
[PlyCount "200"]
[EventDate "2019.08.11"]
[EventType "swiss"]
[EventCountry "BEL"]
[SourceTitle "playchess.com"]
[Source "ChessBase"]
[SourceQuality "1"]
[TimeControl "5400+30"]

1. e4 {[%emt 0:00:06]} c5 {[%emt 0:03:59]} 2. Nf3 {[%emt 0:00:23]} d6 {[%emt 0:00:06]} 3. Bb5+ {[%emt 0:00:15]} Nd7 {[%emt 0:00:07]} 4. d4 {[%emt 0:00:04]} a6 {[%emt 0:00:05]} 5. Bxd7+ {[%emt 0:00:13]} Qxd7 {[%emt 0:00:10]} 6. O-O {[%emt 0:02:01]} Nf6 {[%emt 0:00:38]} 7. Nc3 {[%emt 0:10:55]} e6 {[%emt 0:00:15]} 8. dxc5 {[%emt 0:03:09]} dxc5 {[%emt 0:01:10]} 9. Qe2 {[%emt 0:02:56]} b5 {[%emt 0:01:05]} 10. Rd1 {[%emt 0:00:19]} Qc7 {[%emt 0:06:02]} 11. Bg5 {[%emt 0:06:26]} Bb7 {[%emt 0:05:00]} 12. Bh4 {[%emt 0:15:59]} b4 {[%emt 0:12:25]} 13. Bg3 {[%emt 0:06:09]} Qc8 {[%emt 0:00:43]} 14. Nd5 {[%emt 0:01:28]} exd5 {[%emt 0:07:57]} 15. exd5+ {[%emt 0:00:12]} Kd8 {[%emt 0:00:08]} 16. Ne5 {[%emt 0:02:30]} Qf5 {[%emt 0:01:05]} 17. Nxf7+ {[%emt 0:01:32]} Kd7 {[%emt 0:01:19]} 18. Qe6+ {[%emt 0:17:44]} Qxe6 {[%emt 0:02:54]} 19. dxe6+ {[%emt 0:00:04]} Kxe6 {[%emt 0:00:29]} 20. Nxh8 {[%emt 0:00:51]} Bd5 {[%emt 0:00:40]} 21. Re1+ {[%emt 0:00:24]} Kd7 {[%emt 0:01:14]} 22. a3 {[%emt 0:08:37]} Bd6 {[%emt 0:03:47]} 23. Bxd6 {[%emt 0:00:26]} Kxd6 {[%emt 0:00:08]} 24. axb4 {[%emt 0:00:02]} cxb4 {[%emt 0:00:11]} 25. f3 {[%emt 0:05:09]} a5 {[%emt 0:00:23]} 26. b3 {[%emt 0:03:29]} Rxh8 {[%emt 0:12:20]} 27. Rxa5 {[%emt 0:00:07]} Bc6 {[%emt 0:03:25]} 28. Ra7 {[%emt 0:01:16]} Rg8 {[%emt 0:00:30]} 29. Ree7 {[%emt 0:03:32]} Bd7 {[%emt 0:01:44]} 30. Re2 {[%emt 0:00:19]} Nd5 {[%emt 0:01:28]} 31. Rd2 {[%emt 0:00:11]} Bc6 {[%emt 0:00:05]} 32. Kf2 {[%emt 0:00:58]} h5 {[%emt 0:00:29]} 33. Rf7 {[%emt 0:00:47]} Ke6 {[%emt 0:00:23]} 34. Ra7 {[%emt 0:00:18]} g6 {[%emt 0:04:26]} 35. Ra6 {[%emt 0:00:37]} Kd6 {[%emt 0:01:50]} 36. Ra7 {[%emt 0:01:00]} Re8 {[%emt 0:03:54]} 37. Re2 {[%emt 0:00:29]} Rf8 {[%emt 0:04:22]} 38. Rd2 {[%emt 0:00:26]} Rf6 {[%emt 0:00:14]} 39. Ra6 {[%emt 0:00:52]} Rf7 {[%emt 0:03:49]} 40. Rd4 {[%emt 0:02:10]} Rc7 {[%emt 0:04:36]} 41. Rd2 {[%emt 0:01:00]} Rd7 {[%emt 0:01:13]} 42. Rd4 {[%emt 0:01:44]} Kc7 {[%emt 0:02:19]} 43. Ra7+ {[%emt 0:01:09]} Bb7 {[%emt 0:00:10]} 44. Ra5 {[%emt 0:00:31]} Kb6 {[%emt 0:00:33]} 45. Ra1 {[%emt 0:00:01]} Rc7 {[%emt 0:00:55]} 46. Rd2 {[%emt 0:00:03]} Nc3 {[%emt 0:00:41]} 47. Re1 {[%emt 0:00:09]} Bc8 {[%emt 0:01:12]} 48. Rd4 {[%emt 0:00:57]} Na2 {[%emt 0:02:00]} 49. Rd2 {[%emt 0:01:02]} Bf5 {[%emt 0:00:10]} 50. c4 {[%emt 0:00:46]} Nc3 {[%emt 0:01:06]} 51. Ra1 {[%emt 0:00:22]} Rf7 {[%emt 0:02:02]} 52. Ke1 {[%emt 0:00:19]} h4 {[%emt 0:00:19]} 53. h3 {[%emt 0:00:04]} Re7+ {[%emt 0:01:17]} 54. Kf2 {[%emt 0:00:15]} Re8 {[%emt 0:00:08]} 55. Rd6+ {[%emt 0:00:30]} Kb7 {[%emt 0:00:26]} 56. Rd2 {[%emt 0:00:21]} Re5 {[%emt 0:00:07]} 57. Kf1 {[%emt 0:01:31]} Re3 {[%emt 0:01:16]} 58. Kf2 {[%emt 0:00:15]} Re6 {[%emt 0:01:42]} 59. Kf1 {[%emt 0:00:08]} Ra6 {[%emt 0:00:38]} 60. Rxa6 {[%emt 0:00:33]} Kxa6 {[%emt 0:00:05]} 61. Ke1 {[%emt 0:01:11]} Bb1 {[%emt 0:00:27]} 62. Rd6+ {[%emt 0:00:27]} Ka5 {[%emt 0:00:30]} 63. Kd2 {[%emt 0:00:32]} Bf5 {[%emt 0:00:38]} 64. Rd4 {[%emt 0:00:50]} Nb1+ {[%emt 0:01:12]} 65. Kc1 {[%emt 0:00:11]} Nc3 {[%emt 0:00:17]} 66. Kd2 {[%emt 0:01:29]} Kb6 {[%emt 0:00:39]} 67. Rxh4 {[%emt 0:00:12]} Nb1+ {[%emt 0:00:05]} 68. Kc1 {[%emt 0:00:10]} Kc5 {[%emt 0:02:09]} 69. Rf4 {[%emt 0:00:13]} Nc3 {[%emt 0:00:12]} 70. Kd2 {[%emt 0:01:32]} Kd6 {[%emt 0:00:10]} 71. Rd4+ {[%emt 0:00:16]} Kc5 {[%emt 0:01:04]} 72. Rd8 {[%emt 0:00:11]} Nb1+ {[%emt 0:00:08]} 73. Kc1 {[%emt 0:00:35]} Nc3 {[%emt 0:00:19]} 74. g4 {[%emt 0:00:08]} Be6 {[%emt 0:00:23]} 75. Kd2 {[%emt 0:00:39]} Nb1+ {[%emt 0:00:28]} 76. Kd3 {[%emt 0:00:17]} g5 {[%emt 0:02:21]} 77. Re8 {[%emt 0:00:24]} Kd6 {[%emt 0:00:11]} 78. c5+ {[%emt 0:00:16]} Kd7 {[%emt 0:00:13]} 79. Rb8 {[%emt 0:00:15]} Nc3 {[%emt 0:01:13]} 80. Rb7+ {[%emt 0:01:55]} Kc6 {[%emt 0:00:29]} 81. Rb6+ {[%emt 0:00:08]} Kd5 {[%emt 0:00:16]} 82. Rxb4 {[%emt 0:00:42]} Nd1 {[%emt 0:00:08]} 83. Rb6 {[%emt 0:01:17]} Nf2+ {[%emt 0:00:27]} 84. Ke3 {[%emt 0:00:11]} Nxh3 {[%emt 0:00:04]} 85. Rd6+ {[%emt 0:00:25]} Ke5 {[%emt 0:00:03]} 86. b4 {[%emt 0:00:20]} Bc4 {[%emt 0:00:47]} 87. Rd8 {[%emt 0:00:34]} Nf4 {[%emt 0:00:09]} 88. Re8+ {[%emt 0:01:21]} Kd5 {[%emt 0:00:27]} 89. Rg8 {[%emt 0:00:20]} Ne6 {[%emt 0:00:20]} 90. Rg6 {[%emt 0:00:50]} Bb5 {[%emt 0:00:25]} 91. Rxe6 {[%emt 0:00:47]} Kxe6 {[%emt 0:00:13]} 92. f4 {[%emt 0:00:01]} Be8 {[%emt 0:00:48]} 93. fxg5 {[%emt 0:01:46]} Ke5 {[%emt 0:05:21]} 94. g6 {[%emt 0:00:00]} Bxg6 {[%emt 0:00:00]} 95. c6 {[%emt 0:00:00]} Kd6 {[%emt 0:00:00]} 96. b5 {[%emt 0:00:04]} Bf7 {[%emt 0:00:00]} 97. Kd4 {[%emt 0:00:08]} Bb3 {[%emt 0:00:00]} 98. Kc3 {[%emt 0:00:52]} Be6 {[%emt 0:00:05]} 99. g5 {[%emt 0:00:31]} Kc5 {[%emt 0:00:08]} 100. c7 {[%emt 0:01:15]} Kb6 {[%emt 0:00:06]} 1/2-1/2